bitfinex-derivatives/quotes_SOLF0:USTF0_20250909
["timestamp","ask_amount","ask_price","bid_price","bid_amount"]
[1757396207827,0.02976236,214.49,214.43,113.52]
[1757396208028,0.02976236,214.49,214.44,7.15]
[1757396208231,0.02976236,214.49,214.43,113.52]
[1757396208935,0.02976236,214.49,214.44,7.15]
[1757396209441,0.02976236,214.49,214.43,113.52]
[1757396210034,0.02976236,214.49,214.44,7.15]
[1757396210234,0.02976236,214.49,214.43,113.52]
[1757396210430,0.02976236,214.49,214.44,7.15]
[1757396210933,0.02976236,214.49,214.43,113.52]
[1757396211135,7.24976236,214.49,214.44,7.15]
[1757396211339,0.02976236,214.49,214.44,7.15]
[1757396211739,0.02976236,214.49,214.43,113.52]
[1757396212036,0.02976236,214.49,214.44,7.15]
[1757396212336,0.02976236,214.49,214.43,113.52]
[1757396213130,0.02976236,214.49,214.44,7.15]
[1757396213339,0.02976236,214.49,214.43,113.52]
[1757396213540,0.02976236,214.49,214.4,2.10476813]
[1757396213739,0.02976236,214.49,214.41,120.63]
[1757396214041,0.02976236,214.49,214.41,113.48]
[1757396214235,0.02976236,214.49,214.42,7.15]
[1757396214436,1.37704454,214.49,214.42,8.49728218]
[1757396218742,7.22,214.42,214.36,11.07272809]
[1757396218938,1.34728218,214.4,214.32,1.34728218]
[1757396219146,7.22,214.39,214.33,7.15]
[1757396220435,1.34728218,214.44,214.38,1.34728218]
[1757396220737,1.34728218,214.46,214.4,1.34728218]
[1757396220946,8.56728218,214.48,214.42,1.34728218]
[1757396221143,1.34728218,214.49,214.43,7.15]
[1757396222148,1.34728218,214.49,214.43,8.49728218]
[1757396222549,8.56728218,214.49,214.43,7.15]
[1757396223745,1.34728218,214.47,214.43,7.15]
[1757396223939,7.22,214.46,214.43,7.15]
[1757396225849,1.34728218,214.47,214.43,7.15]
[1757396226149,1.34728218,214.45,214.39,7.15]
[1757396227249,7.22,214.49,214.39,7.15]
[1757396227447,0.02984177,214.44,214.39,7.15]
[1757396228048,0.02984177,214.44,214.38,1.34728218]
[1757396228552,0.02984177,214.44,214.39,7.15]
[1757396228752,0.02984177,214.44,214.38,1.34728218]
[1757396229252,0.02984177,214.44,214.39,7.15]
[1757396229451,0.02984177,214.44,214.38,1.34728218]
[1757396229854,0.02984177,214.44,214.39,7.15]
[1757396230755,0.02984177,214.44,214.38,1.34728218]
[1757396231056,1.37712395,214.44,214.32,7.15]
[1757396231257,1.34728218,214.4,214.34,7.15]
[1757396231447,8.56728218,214.4,214.34,7.15]
[1757396231653,7.22,214.37,214.31,313.42]
[1757396232256,1.34728218,214.37,214.32,7.15]
[1757396232452,7.22,214.36,214.32,7.15]
[1757396232749,7.22,214.36,214.31,313.42]
[1757396233055,7.22,214.36,214.32,7.15]
[1757396233254,7.22,214.36,214.31,313.42]
[1757396233450,7.22,214.36,214.32,7.1]
[1757396233850,7.22,214.36,214.31,313.42]
[1757396234050,7.59496392,214.39,214.32,7.1]
[1757396234352,1.34728218,214.37,214.32,7.1]
[1757396234547,1.34728218,214.37,214.31,426.88]
[1757396234754,1.34728218,214.37,214.32,7.1]
[1757396234954,1.34728218,214.37,214.31,426.88]
[1757396235154,0.03496392,214.39,214.32,7.1]
[1757396235453,1.34728218,214.38,214.33,7.1]
[1757396235656,1.34728218,214.38,214.32,113.46]
[1757396235857,1.34728218,214.38,214.33,7.1]
[1757396236055,1.34728218,214.38,214.32,113.46]
[1757396236254,1.34728218,214.38,214.33,7.1]
[1757396236453,1.34728218,214.38,214.32,113.46]
[1757396236859,1.34728218,214.38,214.33,7.1]
[1757396237055,1.34728218,214.38,214.32,113.46]
[1757396237256,1.34728218,214.38,214.33,7.1]
[1757396237650,1.34728218,214.38,214.32,113.46]
[1757396238061,1.34728218,214.38,214.33,7.1]
[1757396238256,1.34728218,214.38,214.32,113.46]
[1757396238457,1.34728218,214.38,214.33,7.1]
[1757396238753,1.34728218,214.38,214.32,113.46]
[1757396239461,1.34728218,214.38,214.33,7.1]
[1757396239661,1.34728218,214.38,214.32,113.46]
[1757396239862,8.90728218,214.38,214.32,7.1]
[1757396240058,8.90728218,214.38,214.34,7.1]
[1757396241363,8.90728218,214.38,214.33,113.48]
[1757396241562,8.90728218,214.38,214.34,7.1]
[1757396241858,8.90728218,214.38,214.33,113.48]
[1757396242456,8.90728218,214.38,214.34,7.1]
[1757396242857,8.90728218,214.38,214.33,113.48]
[1757396243565,8.90728218,214.38,214.34,7.1]
[1757396243858,7.56,214.38,214.33,113.48]
[1757396244158,1.34728218,214.38,214.33,113.48]
[1757396244666,1.34728218,214.38,214.34,7.1]
[1757396245359,1.34728218,214.38,214.33,113.48]
[1757396245559,1.34728218,214.38,214.34,7.1]
[1757396245758,1.34728218,214.38,214.33,113.48]
[1757396246159,1.34728218,214.38,214.34,7.1]
[1757396247457,1.34728218,214.38,214.33,113.48]
[1757396247659,1.34728218,214.38,214.34,7.1]
[1757396247856,1.34728218,214.38,214.33,113.48]
[1757396248765,1.34728218,214.38,214.34,7.1]
[1757396249457,1.34728218,214.38,214.33,113.48]
[1757396249656,1.34728218,214.38,214.34,7.1]
[1757396249856,1.34728218,214.38,214.33,113.48]
[1757396250257,1.34728218,214.38,214.34,7.1]
[1757396250465,1.34728218,214.38,214.33,113.48]
[1757396250658,1.34728218,214.38,214.34,7.1]
[1757396251062,1.34728218,214.38,214.33,113.48]
[1757396251265,1.34728218,214.38,214.34,7.1]
[1757396251465,1.34728218,214.38,214.33,113.48]
[1757396251664,1.34728218,214.38,214.34,7.1]
[1757396251865,1.34728218,214.38,214.33,113.48]
[1757396252563,8.90728218,214.38,214.32,7.1]
[1757396252763,8.90728218,214.38,214.33,113.48]
[1757396252970,8.90728218,214.38,214.34,7.1]
[1757396253264,8.90728218,214.38,214.33,113.48]
[1757396253468,8.90728218,214.38,214.34,7.1]
[1757396253667,1.34728218,214.38,214.35,113.48]
[1757396253871,1.34728218,214.36,214.31,313.42]
[1757396254060,7.56,214.35,214.32,7.1]
[1757396254264,8.90728218,214.34,214.32,113.48]
[1757396254565,7.56,214.33,214.32,113.48]
[1757396254758,1.34728218,214.34,214.32,113.48]
[1757396254958,1.34728218,214.34,214.32,120.58]
[1757396256165,1.34728218,214.34,214.33,7.1]
[1757396256567,1.34728218,214.38,214.33,7.1]
[1757396256868,1.34728218,214.38,214.32,113.48]
[1757396257062,1.37686674,214.38,214.33,7.1]
[1757396257374,1.37686674,214.38,214.32,113.48]
[1757396258572,1.37686674,214.38,214.33,7.1]
[1757396258969,1.37686674,214.38,214.32,113.48]
[1757396259176,1.37686674,214.38,214.33,7.1]
[1757396259469,1.37686674,214.38,214.32,113.48]
[1757396259673,1.37686674,214.38,214.33,7.1]
[1757396260267,1.37686674,214.38,214.32,113.48]
[1757396260569,1.37686674,214.38,214.33,7.1]
[1757396260871,1.37686674,214.38,214.32,113.48]
[1757396261570,1.37686674,214.38,214.32,120.58]
[1757396262172,0.02958456,214.38,214.33,7.1]
[1757396262571,0.02958456,214.38,214.32,113.48]
[1757396262873,0.02958456,214.38,214.33,7.1]
[1757396263264,0.02958456,214.38,214.33,7.72]
[1757396263667,0.02958456,214.38,214.32,113.48]
[1757396263870,0.02958456,214.38,214.33,7.72]
[1757396264064,0.02958456,214.38,214.32,113.48]
[1757396264775,0.02958456,214.38,214.33,7.72]
[1757396265176,0.02958456,214.38,214.32,113.48]
[1757396265471,7.12,214.36,214.33,7.72]
[1757396265675,8.46728218,214.35,214.33,113.46]
[1757396266173,0.02958456,214.38,214.33,113.46]
[1757396266373,1.34728218,214.37,214.33,113.46]
[1757396266773,1.34728218,214.37,214.34,7.72]
[1757396271382,1.34728218,214.37,214.33,113.46]
[1757396272387,1.37686674,214.38,214.34,7.72]
[1757396272584,1.37686674,214.38,214.33,113.46]
[1757396272786,1.37686674,214.38,214.34,7.72]
[1757396273479,1.37686674,214.38,214.33,113.46]
[1757396273685,1.37686674,214.38,214.34,7.72]
[1757396273983,1.37686674,214.38,214.33,113.46]
[1757396274384,1.37686674,214.38,214.34,7.72]
[1757396274579,1.37686674,214.38,214.33,113.46]
[1757396275188,8.46728218,214.36,214.33,7.72]
[1757396275383,7.12,214.35,214.33,7.72]
[1757396275583,1.34728218,214.36,214.33,7.72]
[1757396276089,8.46728218,214.36,214.33,7.72]
[1757396276293,7.12,214.36,214.33,7.72]
[1757396276492,7.12,214.37,214.33,7.72]
[1757396276694,2.13768916,214.38,214.33,7.72]
[1757396276895,7.12,214.37,214.33,7.72]
[1757396277283,2.13768916,214.38,214.33,7.72]
[1757396277487,7.12,214.37,214.33,7.72]
[1757396277687,2.13768916,214.38,214.33,7.72]
[1757396277893,7.12,214.37,214.33,7.72]
[1757396278088,2.13768916,214.38,214.33,7.72]
[1757396278294,7.12,214.37,214.33,7.72]
[1757396278493,2.13768916,214.38,214.33,7.72]
[1757396278897,7.12,214.37,214.33,7.72]
[1757396279393,7.12,214.37,214.3,26.14]
[1757396280693,2.13768916,214.38,214.31,7.72]
[1757396280896,9.25768916,214.38,214.31,7.72]
[1757396282798,0.02958456,214.38,214.31,7.72]
[1757396288901,7.12,214.37,214.31,7.72]
[1757396289900,2.13768916,214.38,214.31,7.72]
[1757396293705,9.87768916,214.38,214.31,7.72]
[1757396306818,7.76958456,214.38,214.31,7.72]
[1757396308820,0.02958456,214.38,214.31,7.72]
[1757396315825,7.74,214.37,214.31,7.72]
[1757396324522,9.8481046,214.37,214.31,7.72]
[1757396328340,2.1081046,214.34,214.24,7.42]
[1757396328626,7.34,214.33,214.24,7.42]
[1757396337140,0.02959102,214.31,214.24,7.42]
[1757396338449,0.02959102,214.31,214.28,7.42]
[1757396339147,0.02959102,214.31,214.27,1.34933555]
[1757396339542,0.02959102,214.31,214.28,7.42]
[1757396339749,0.02959102,214.31,214.27,1.34933555]
[1757396339948,0.02959102,214.31,214.28,7.42]
[1757396340145,0.02959102,214.31,214.27,1.34933555]
[1757396340350,0.02959102,214.31,214.3,7.42]
[1757396340550,0.02959102,214.31,214.29,7.42]
[1757396340751,0.02959102,214.31,214.28,1.34933555]
[1757396340949,0.02959102,214.31,214.29,7.42]
[1757396341148,0.02959102,214.31,214.28,1.34933555]
[1757396341348,0.02959102,214.31,214.29,7.42]
[1757396341749,0.02959102,214.31,214.28,1.34933555]
[1757396342243,0.02959102,214.31,214.29,7.42]
[1757396343050,0.02959102,214.31,214.28,1.34933555]
[1757396343246,0.02959102,214.31,214.29,7.42]
[1757396343458,7.36959102,214.31,214.29,7.42]
[1757396343651,0.02959102,214.31,214.25,20.96]
[1757396343852,0.02959102,214.31,214.26,7.42]
[1757396344557,0.02959102,214.31,214.25,20.96]
[1757396344757,0.02959102,214.31,214.26,1.34933555]
[1757396345655,0.02959102,214.31,214.27,7.42]
[1757396346157,0.02959102,214.31,214.26,1.34933555]
[1757396346551,0.02959102,214.31,214.27,7.42]
[1757396346758,0.02959102,214.31,214.26,1.34933555]
[1757396347160,0.02959102,214.31,214.27,7.42]
[1757396347556,0.02959102,214.31,214.26,1.34933555]
[1757396347757,7.36959102,214.31,214.26,1.34933555]
[1757396347958,7.36959102,214.31,214.27,7.42]
[1757396348458,7.36959102,214.31,214.26,1.34933555]
[1757396348961,7.36959102,214.31,214.27,7.42]
[1757396349156,7.36959102,214.31,214.26,1.34933555]
[1757396350058,7.36959102,214.31,214.27,7.42]
[1757396350256,7.36959102,214.31,214.26,1.34933555]
[1757396350862,7.36959102,214.31,214.27,7.42]
[1757396351063,7.36959102,214.31,214.26,1.34933555]
[1757396351654,7.36959102,214.31,214.27,7.42]
[1757396352058,7.36959102,214.31,214.26,1.34933555]
[1757396352259,7.36959102,214.31,214.27,7.42]
[1757396352559,7.36959102,214.31,214.26,1.34933555]
[1757396352758,7.36959102,214.31,214.27,7.42]
[1757396353265,0.02959102,214.31,214.29,7.44]
[1757396353465,0.02959102,214.31,214.28,1.34933555]
[1757396353860,0.02959102,214.31,214.29,7.44]
[1757396354260,0.02959102,214.31,214.28,1.34933555]
[1757396354461,0.02959102,214.31,214.3,8.78933555]
[1757396355261,0.02959102,214.31,214.3,7.44]
[1757396360273,7.44959102,214.31,214.28,7.44]
[1757396360470,7.44959102,214.31,214.27,1.34933555]
[1757396360666,7.44959102,214.31,214.28,7.44]
[1757396360869,7.42,214.3,214.28,7.44]
[1757396362675,7.42,214.3,214.25,1.34933555]
[1757396362973,7.42,214.3,214.26,7.44]
[1757396363381,0.02959102,214.31,214.26,7.44]
[1757396363775,7.42,214.3,214.26,7.44]
[1757396364380,7.42,214.3,214.25,1.34933555]
[1757396364682,7.42,214.3,214.26,7.44]
[1757396365180,7.42,214.3,214.25,1.34933555]
[1757396365381,7.42,214.3,214.26,7.44]
[1757396365581,7.42,214.3,214.25,1.34933555]
[1757396365784,7.42,214.3,214.26,7.44]
[1757396365979,7.42,214.3,214.25,1.34933555]
[1757396366178,7.42,214.3,214.26,7.44]
[1757396366780,7.42,214.3,214.25,1.34933555]
[1757396366979,7.42,214.3,214.26,7.44]
[1757396367280,7.42,214.3,214.25,1.34933555]
[1757396367585,7.42,214.3,214.26,7.44]
[1757396367883,7.42,214.3,214.25,1.34933555]
[1757396368185,7.42,214.3,214.26,7.44]
[1757396368376,7.42,214.3,214.25,1.34933555]
[1757396368581,7.42,214.3,214.26,7.44]
[1757396368781,7.42,214.3,214.25,1.34933555]
[1757396369081,7.42,214.3,214.26,7.44]
[1757396369484,7.42,214.3,214.25,1.34933555]
[1757396369782,7.42,214.3,214.26,7.44]
[1757396369984,7.42,214.3,214.25,1.34933555]
[1757396370286,7.42,214.3,214.26,7.44]
[1757396370581,7.42,214.3,214.25,1.34933555]
[1757396370582,7.42,214.3,214.28,7.44]
[1757396376891,0.02959102,214.31,214.28,7.44]
[1757396377078,0.02959102,214.31,214.29,1.34933555]
[1757396377388,0.02959102,214.31,214.29,8.78933555]
[1757396378984,0.02959102,214.31,214.3,7.44]
[1757396385891,0.02959102,214.31,214.3,8.78933555]
[1757396386092,7.71959102,214.31,214.23,52.49751446]
[1757396386292,0.02959102,214.31,214.3,8.61933555]
[1757396387786,0.02959102,214.31,214.3,7.27]
[1757396389295,0.02959102,214.31,214.29,1.34933555]
[1757396389497,7.71959102,214.31,214.29,1.34933555]
[1757396389896,7.71959102,214.31,214.29,8.61933555]
[1757396390096,0.02959102,214.31,214.29,8.61933555]
[1757396390499,0.02959102,214.31,214.3,7.27]
[1757396397706,0.02959102,214.31,214.3,8.61933555]
[1757396398308,0.02959102,214.31,214.3,7.27]
[1757396403815,7.71959102,214.31,214.28,7.27]
[1757396404416,7.71959102,214.31,214.27,2.10791737]
[1757396404615,7.71959102,214.31,214.28,7.27]
[1757396405514,0.02959102,214.31,214.27,2.10791737]
[1757396405715,0.02959102,214.31,214.28,7.27]
[1757396406115,7.71959102,214.31,214.28,7.27]
[1757396407514,0.02959102,214.31,214.28,7.27]
[1757396407720,0.02959102,214.31,214.27,2.10791737]
[1757396408114,0.02959102,214.31,214.28,7.27]
[1757396408518,0.02959102,214.31,214.27,2.10791737]
[1757396408717,0.02959102,214.31,214.28,7.27]
[1757396408918,0.02959102,214.31,214.27,2.10791737]
[1757396409419,0.02959102,214.31,214.28,7.27]
[1757396412117,7.71959102,214.31,214.26,2.10791737]
[1757396412414,7.71959102,214.31,214.27,7.27]
[1757396412915,7.69,214.3,214.27,7.27]
[1757396413613,7.69,214.3,214.26,2.10791737]
[1757396413810,7.69,214.3,214.27,7.23]
[1757396414013,0.02959102,214.31,214.26,2.10791737]
[1757396414412,7.33959102,214.31,214.26,2.10791737]
[1757396414814,0.02959102,214.31,214.26,2.10791737]
[1757396415522,7.31,214.3,214.27,7.23]
[1757396415723,7.31,214.3,214.26,2.10791737]
[1757396416018,7.31,214.3,214.27,7.23]
[1757396416611,7.31,214.3,214.26,2.10791737]
[1757396416811,7.31,214.3,214.27,7.23]
[1757396417219,7.31,214.3,214.26,2.10791737]
[1757396417621,7.31,214.3,214.27,7.23]
[1757396417822,0.02959102,214.31,214.27,7.23]
[1757396418014,7.33959102,214.31,214.26,2.10791737]
[1757396418211,0.02959102,214.31,214.27,7.23]
[1757396419220,0.02959102,214.31,214.26,2.10791737]
[1757396419616,0.02959102,214.31,214.27,7.23]
[1757396420126,0.02959102,214.31,214.26,2.10791737]
[1757396420418,0.02959102,214.31,214.27,7.23]
[1757396420623,0.02959102,214.31,214.26,2.10791737]
[1757396420825,0.02959102,214.31,214.27,7.23]
[1757396421823,0.02959102,214.31,214.26,2.10791737]
[1757396422121,0.02959102,214.31,214.27,7.23]
[1757396422317,0.02959102,214.31,214.29,2.10791737]
[1757396422524,0.02959102,214.31,214.3,7.23]
[1757396423126,0.02959102,214.31,214.29,2.10791737]
[1757396423127,0.02959102,214.31,214.29,9.33791737]
[1757396423327,7.33959102,214.31,214.25,9.33791737]
[1757396423515,7.33959102,214.31,214.25,122.63791737]
[1757396424329,7.33959102,214.31,214.25,115.40791737]
[1757396424828,7.33959102,214.31,214.26,7.23]
[1757396425126,7.33959102,214.31,214.25,115.40791737]
[1757396425327,7.33959102,214.31,214.26,7.23]
[1757396425527,7.33959102,214.31,214.25,115.40791737]
[1757396425922,7.33959102,214.31,214.26,7.23]
[1757396426719,7.33959102,214.31,214.25,122.63791737]
[1757396426920,7.33959102,214.31,214.25,9.33791737]
[1757396427627,7.31,214.3,214.25,9.33791737]
[1757396428932,0.02959102,214.31,214.25,9.33791737]
[1757396429130,7.31,214.3,214.25,9.33791737]
[1757396429328,0.02959102,214.31,214.25,9.33791737]
[1757396429530,7.33959102,214.31,214.25,9.33791737]
[1757396435830,0.02959102,214.31,214.3,2.10791737]
[1757396436038,0.02959102,214.31,214.3,9.33791737]
[1757396436537,0.02959102,214.31,214.3,7.23]
[1757396438436,7.31,214.3,214.29,2.10791737]
[1757396438938,7.31,214.3,214.26,9.33791737]
[1757396439438,7.31,214.3,214.27,7.23]
[1757396440639,0.02959102,214.31,214.26,9.33791737]
[1757396441330,7.31,214.3,214.26,9.33791737]
[1757396441530,0.02959102,214.31,214.26,9.33791737]
[1757396441733,7.31,214.3,214.26,9.33791737]
[1757396441940,7.31,214.3,214.27,7.23]
[1757396443035,0.02959102,214.31,214.27,7.23]
[1757396443341,7.79,214.3,214.27,7.23]
[1757396443937,0.02959102,214.31,214.27,7.23]
[1757396444339,7.79,214.3,214.27,7.23]
[1757396444540,0.02959102,214.31,214.27,7.23]
[1757396445041,7.79,214.3,214.27,7.23]
[1757396445541,0.02959102,214.31,214.27,7.23]
[1757396446242,7.79,214.3,214.27,7.23]
[1757396446442,0.02959102,214.31,214.27,7.23]
[1757396446833,0.02959102,214.31,214.26,2.10791737]
[1757396447041,0.02959102,214.31,214.26,9.67791737]
[1757396447231,7.79,214.3,214.26,9.67791737]
[1757396447843,0.02959102,214.31,214.26,9.67791737]
[1757396448142,7.79,214.3,214.26,9.67791737]
[1757396448541,0.02959102,214.31,214.26,9.67791737]
[1757396448738,7.79,214.3,214.26,9.67791737]
[1757396448942,0.02959102,214.31,214.26,9.67791737]
[1757396449837,0.02959102,214.31,214.26,7.57]
[1757396450042,7.79,214.3,214.26,7.57]
[1757396450240,0.02959102,214.31,214.26,7.57]
[1757396451047,7.79,214.3,214.24,7.57]
[1757396454240,0.02959102,214.31,214.24,7.57]
[1757396456450,7.79,214.3,214.24,7.57]
[1757396458450,7.79,214.3,214.26,8.91961188]
[1757396458654,0.02959102,214.31,214.26,8.91961188]
[1757396458853,7.79,214.3,214.26,8.91961188]
[1757396459050,7.79,214.3,214.27,7.57]
[1757396460349,7.79,214.3,214.26,1.34961188]
[1757396460548,7.79,214.3,214.27,7.57]
[1757396461956,7.79,214.3,214.26,1.34961188]
[1757396462253,7.79,214.3,214.27,7.57]
[1757396462853,7.79,214.3,214.28,7.57]
[1757396463363,7.79,214.3,214.25,8.91961188]
[1757396463653,7.81959102,214.31,214.25,8.91961188]
[1757396464958,7.81959102,214.31,214.27,1.34961188]
[1757396465152,7.81959102,214.31,214.28,7.57]
[1757396465560,7.79,214.3,214.28,7.57]
[1757396466060,7.81959102,214.31,214.28,7.57]
[1757396466762,0.02959102,214.31,214.28,7.57]
[1757396466964,7.79,214.3,214.28,7.57]
[1757396468258,0.02959102,214.31,214.27,1.34961188]
[1757396469061,7.79,214.3,214.27,1.34961188]
[1757396469361,0.02959102,214.31,214.27,1.34961188]
[1757396469759,7.79,214.3,214.27,8.91961188]
[1757396470563,0.02959102,214.31,214.27,8.91961188]
[1757396470872,7.79,214.3,214.27,8.91961188]
[1757396471365,0.02959102,214.31,214.27,1.34961188]
[1757396471863,7.79,214.3,214.27,8.91961188]
[1757396472058,0.02959102,214.31,214.27,8.91961188]
[1757396472261,7.79,214.3,214.27,8.91961188]
[1757396472459,0.02959102,214.31,214.27,8.91961188]
[1757396472661,7.79,214.3,214.27,8.91961188]
[1757396472858,0.02959102,214.31,214.27,1.34961188]
[1757396473058,0.02959102,214.31,214.26,7.57]
[1757396473262,7.79,214.3,214.26,7.57]
[1757396473465,0.02959102,214.31,214.26,7.57]
[1757396473665,7.76,214.3,214.26,7.57]
[1757396473866,0.02959102,214.31,214.26,7.57]
[1757396474366,7.78959102,214.31,214.25,8.51961188]
[1757396475665,7.78959102,214.31,214.28,7.17]
[1757396476562,0.02959102,214.31,214.28,7.17]
[1757396476767,7.78959102,214.31,214.28,7.17]
[1757396477768,7.76,214.3,214.28,7.17]
[1757396478966,7.76,214.3,214.27,8.51961188]
[1757396479166,7.76,214.3,214.28,7.17]
[1757396479367,0.02959102,214.31,214.28,7.17]
[1757396479568,0.02959102,214.31,214.27,1.34961188]
[1757396479964,0.02959102,214.31,214.28,7.17]
[1757396480364,0.02959102,214.31,214.27,1.34961188]
[1757396480564,0.02959102,214.31,214.28,7.17]
[1757396480770,0.02959102,214.31,214.27,1.34961188]
[1757396481161,0.02959102,214.31,214.23,7.17]
[1757396481363,0.02959102,214.31,214.3,8.51961188]
[1757396484162,0.02959102,214.31,214.3,7.17]
[1757396484366,0.02959102,214.31,214.3,8.51961188]
[1757396512386,0.02959102,214.31,214.3,7.17]
[1757396512589,0.02959102,214.31,214.3,8.51961188]
[1757396520299,0.02959102,214.31,214.3,9.27756379]
[1757396529001,7.75,214.41,214.31,7.08]
[1757396529202,7.75,214.41,214.35,2.10756379]
[1757396530202,5.2033227,214.43,214.37,7.08]
[1757396530500,7.75,214.42,214.37,7.08]
[1757396531004,5.2033227,214.43,214.37,7.08]
[1757396531201,7.75,214.43,214.37,7.08]
[1757396533708,5.2033227,214.45,214.38,2.10756379]
[1757396534001,7.6,214.46,214.39,7.65]
[1757396534511,7.6,214.48,214.42,7.65]
[1757396537104,70.34091911,214.51,214.45,7.65]
[1757396537703,7.6,214.51,214.46,0.03080601]
[1757396537902,7.6,214.51,214.47,7.65]
[1757396538108,313.62,214.57,214.47,7.65]
[1757396538309,7.6,214.56,214.47,7.65]
[1757396538508,313.62,214.57,214.47,9.75756379]
[1757396538713,7.6,214.56,214.47,9.75756379]
[1757396538905,313.62,214.57,214.47,9.75756379]
[1757396540006,7.6,214.56,214.47,9.75756379]
[1757396540212,313.62,214.57,214.47,9.75756379]
[1757396540802,7.6,214.56,214.47,9.75756379]
[1757396541013,7.6,214.58,214.5,9.75756379]
[1757396541609,7.6,214.58,214.52,0.02983593]
[1757396541811,7.6,214.58,214.52,7.67983593]
[1757396542015,7.6,214.58,214.52,0.02983593]
[1757396545216,7.6,214.58,214.52,7.67983593]
[1757396546014,7.6,214.58,214.52,9.78739972]
[1757396550310,7.6,214.58,214.52,2.13739972]
[1757396550716,7.6,214.58,214.53,7.65]
[1757396551217,7.6,214.64,214.53,7.65]
[1757396551920,7.6,214.64,214.56,0.03301681]
[1757396568125,7.6,214.64,214.57,7.46]
[1757396569427,7.6,214.64,214.56,0.03301681]
[1757396580235,7.6,214.64,214.56,7.49301681]
[1757396580434,7.12,214.61,214.56,1.37889311]
[1757396580635,1.3458763,214.62,214.56,1.37889311]
[1757396580835,7.12,214.61,214.56,1.3458763]
[1757396581036,7.12,214.61,214.57,0.03175786]
[1757396581231,1.3458763,214.62,214.57,0.03175786]
[1757396581431,7.12,214.61,214.57,0.03175786]
[1757396581831,1.3458763,214.62,214.57,0.03175786]
[1757396582034,7.12,214.61,214.57,0.03175786]
[1757396582335,1.3458763,214.62,214.57,0.03175786]
[1757396582735,7.12,214.61,214.57,0.03175786]
[1757396583237,7.12,214.61,214.57,7.49175786]
[1757396583432,1.3458763,214.62,214.57,7.49175786]
[1757396584539,7.12,214.61,214.57,7.49175786]
[1757396584736,1.3458763,214.62,214.57,7.49175786]
[1757396585733,7.12,214.61,214.57,7.49175786]
[1757396586035,1.3458763,214.62,214.57,7.49175786]
[1757396586637,7.12,214.61,214.57,7.49175786]
[1757396586937,1.3458763,214.62,214.58,7.46]
[1757396587139,7.12,214.61,214.58,7.46]
[1757396587538,7.12,214.61,214.57,0.03175786]
[1757396587836,1.3458763,214.64,214.57,1.37763416]
[1757396588041,8.4658763,214.64,214.58,7.46]
[1757396588432,1.3458763,214.64,214.59,0.03227944]
[1757396588638,1.3458763,214.64,214.6,7.46]
[1757396589133,1.3458763,214.65,214.6,7.46]
[1757396589333,7.12,214.64,214.6,7.46]
[1757396589533,1.3458763,214.65,214.6,7.46]
[1757396589837,7.12,214.64,214.6,7.46]
[1757396590130,1.3458763,214.65,214.59,0.03227944]
[1757396590336,1.3458763,214.65,214.6,7.46]
[1757396590536,7.12,214.66,214.6,7.46]
[1757396593442,1.3458763,214.65,214.6,7.76]
[1757396593743,7.46,214.62,214.6,7.76]
[1757396593942,1.3458763,214.63,214.6,7.76]
[1757396594432,1.3458763,214.63,214.59,0.03227944]
[1757396594636,1.3458763,214.65,214.6,7.76]
[1757396595042,1.3458763,214.65,214.59,0.03227944]
[1757396595241,1.3458763,214.65,214.6,7.76]
[1757396595537,1.3458763,214.65,214.59,0.03227944]
[1757396595739,1.3458763,214.65,214.6,7.76]
[1757396596132,1.3458763,214.63,214.59,0.03227944]